fUST/lending_fUST_20250210
["ID","MTS","AMOUNT","RATE_DAILY","PERIOD"]
[352534556,1739155842317,-214.73044086,0.00011232,2]
[352534557,1739155842329,-500.0,0.00011232,2]
[352534558,1739155842340,-996.46,0.00011232,2]
[352534559,1739155842351,-500.0,0.00011232,2]
[352534560,1739155842361,-500.0,0.00011232,2]
[352534561,1739155842372,-864.19,0.00011232,2]
[352534562,1739155842383,-507.74716417,0.00011232,2]
[352534563,1739155842394,-13628.67,0.00011232,2]
[352534564,1739155842404,-500.0,0.00011232,2]
[352534565,1739155842415,-512.48750466,0.00011232,2]
[352534566,1739155842429,-847.08,0.00011232,2]
[352534567,1739155842440,-520.0,0.00011232,2]
[352534568,1739155842569,-524.24,0.00011232,2]
[352534569,1739155842581,-288.86,0.00011232,2]
[352534570,1739155842591,-500.0,0.00011232,2]
[352534571,1739155842600,-500.0,0.00011232,2]
[352534572,1739155842609,-500.0,0.00011232,2]
[352534573,1739155842619,-1269.36,0.00011232,2]
[352534574,1739155842628,-500.0,0.00011232,2]
[352534575,1739155842637,-500.0,0.00011232,2]
[352534576,1739155842646,-262.45389299,0.00011232,2]
[352534577,1739155842655,-715.0,0.00011232,2]
[352534578,1739155842664,-500.0,0.00011232,2]
[352534580,1739155842674,-500.0,0.00011232,2]
[352534581,1739155842683,-505.23331944,0.00011232,2]
[352534582,1739155842692,-535.04,0.00011232,2]
[352534583,1739155842701,-500.0,0.00011232,2]
[352534584,1739155842711,-500.0,0.00011232,2]
[352534586,1739155842720,-500.0,0.00011232,2]
[352534587,1739155842729,-500.0,0.00011232,2]
[352534590,1739155842739,-500.0,0.00011232,2]
[352534593,1739155842749,-1519.8,0.00011232,2]
[352534594,1739155842763,-270.99536582,0.00011232,2]
[352534595,1739155842772,-546.72,0.00011232,2]
[352534597,1739155842781,-694.31,0.00011232,2]
[352534598,1739155842790,-612.06,0.00011232,2]
[352534599,1739155842799,-500.0,0.00011232,2]
[352534600,1739155842808,-2676.99,0.00011232,2]
[352534601,1739155842817,-500.0,0.00011232,2]
[352534602,1739155842827,-500.0,0.00011232,2]
[352534604,1739155842837,-500.0,0.00011232,2]
[352534606,1739155842847,-2116.77,0.00011232,2]
[352534608,1739155842856,-500.0,0.00011232,2]
[352534610,1739155842866,-630.21,0.00011232,2]
[352534612,1739155842875,-500.0,0.00011232,2]
[352534614,1739155842885,-500.0,0.00011232,2]
[352534616,1739155842894,-500.0,0.00011232,2]
[352534618,1739155842903,-500.0,0.00011232,2]
[352534620,1739155842913,-839.52,0.00011232,2]
[352534622,1739155842922,-500.0,0.00011232,2]
[352534624,1739155842931,-2001.69,0.00011232,2]
[352534627,1739155842940,-575.43,0.00011232,2]
[352534630,1739155842949,-504.70113771,0.00011232,2]
[352534632,1739155842958,-500.0,0.00011232,2]
[352534634,1739155842967,-506.76682037,0.00011232,2]
[352534636,1739155842976,-7325.66,0.00011232,2]
[352534638,1739155842985,-154.08897783,0.00011338,2]
[352534640,1739155842995,-500.0,0.00011368,2]
[352534642,1739155843004,-191.39125139,0.00011368,2]
[352534644,1739155843013,-500.0,0.00011368,2]
[352534646,1739155843022,-636.33371485,0.00011368,2]
[352534648,1739155843032,-500.0,0.00011369,2]
[352534650,1739155843041,-500.0,0.00011369,2]
[352534652,1739155843050,-500.0,0.00011369,2]
[352534654,1739155843061,-161.24409204,0.00011369,2]
[352534656,1739155843070,-500.0,0.00011369,2]
[352534658,1739155843079,-500.0,0.00011369,2]
[352534660,1739155843088,-500.0,0.00011369,2]
[352534662,1739155843098,-389.42993362,0.00011369,2]
[352534664,1739155843107,-500.0,0.00011369,2]
[352534666,1739155843116,-500.0,0.00011369,2]
[352534668,1739155843126,-392.18716296,0.00011369,2]
[352534670,1739155843135,-609.62,0.00011369,2]
[352534671,1739155843144,-500.0,0.00011369,2]
[352534672,1739155843153,-500.0,0.00011369,2]
[352534673,1739155843162,-500.0,0.00011369,2]
[352534674,1739155843171,-500.0,0.00011369,2]
[352534675,1739155843180,-500.0,0.00011369,2]
[352534676,1739155843189,-500.0,0.00011369,2]
[352534677,1739155843198,-500.0,0.00011369,2]
[352534678,1739155843207,-500.0,0.00011369,2]
[352534679,1739155843216,-500.0,0.00011369,2]
[352534680,1739155843225,-580.82721414,0.00011369,2]
[352534681,1739155843234,-290.55778503,0.00011369,2]
[352534682,1739155843243,-500.0,0.00011369,2]
[352534683,1739155843253,-500.0,0.00011369,2]
[352534684,1739155843261,-500.0,0.00011369,2]
[352534685,1739155843270,-500.0,0.00011369,2]
[352534686,1739155843279,-500.0,0.00011369,2]
[352534687,1739155843288,-595.63,0.00011369,2]
[352534688,1739155843297,-500.0,0.00011369,2]
[352534689,1739155843306,-500.0,0.00011369,2]
[352534690,1739155843315,-500.0,0.00011369,2]
[352534691,1739155843324,-500.0,0.00011369,2]
[352534692,1739155843335,-500.0,0.00011369,2]
[352534693,1739155843344,-500.0,0.00011369,2]
[352534694,1739155843353,-500.0,0.00011369,2]
[352534696,1739155843362,-615.64937716,0.00011369,2]
[352534697,1739155843371,-500.0,0.00011369,2]
[352534698,1739155843380,-423.70414032,0.00011369,2]
[352534699,1739155843389,-500.0,0.00011369,2]
[352534700,1739155843398,-500.0,0.00011369,2]
[352534701,1739155843407,-500.0,0.00011369,2]
[352534702,1739155843417,-500.0,0.00011369,2]
[352534703,1739155843431,-500.0,0.00011369,2]
[352534704,1739155843440,-1054.27,0.00011369,2]
[352534705,1739155843450,-500.0,0.00011369,2]
[352534706,1739155843459,-500.0,0.00011369,2]
[352534707,1739155843468,-500.0,0.00011369,2]
[352534708,1739155843477,-500.0,0.00011369,2]
[352534709,1739155843487,-500.0,0.00011369,2]
[352534710,1739155843497,-500.0,0.00011369,2]
[352534711,1739155843508,-500.0,0.00011369,2]
[352534712,1739155843517,-500.0,0.00011369,2]
[352534713,1739155843526,-500.0,0.00011369,2]
[352534714,1739155843536,-500.0,0.00011369,2]
[352534715,1739155843545,-2186.32,0.00011369,2]
[352534716,1739155843554,-2841.22,0.00011369,2]
[352534717,1739155843563,-500.0,0.00011369,2]
[352534718,1739155843572,-500.0,0.00011369,2]
[352534719,1739155843581,-500.8,0.00011369,2]
[352534720,1739155843590,-500.0,0.00011369,2]
[352534721,1739155843599,-2368.46,0.00011369,2]
[352534722,1739155843609,-728.03,0.00011369,2]
[352534723,1739155843618,-500.0,0.00011369,2]
[352534724,1739155843627,-7695.47,0.00011369,2]
[352534725,1739155843636,-500.0,0.00011369,2]
[352534726,1739155843645,-500.0,0.00011369,2]
[352534727,1739155843654,-500.0,0.00011369,2]
[352534728,1739155843663,-823.2,0.00011369,2]
[352534729,1739155843673,-870.16,0.00011369,2]
[352534730,1739155843682,-500.0,0.00011369,2]
[352534731,1739155843692,-500.0,0.00011369,2]
[352534732,1739155843701,-996.46,0.00011369,2]
[352534733,1739155843710,-500.0,0.00011369,2]
[352534734,1739155843719,-500.0,0.00011369,2]
[352534735,1739155843728,-864.19,0.00011369,2]
[352534736,1739155843737,-13628.67,0.00011369,2]
[352534737,1739155843747,-500.0,0.00011369,2]
[352534738,1739155843756,-847.08,0.00011369,2]
[352534739,1739155843766,-524.24,0.00011369,2]
[352534740,1739155843775,-500.0,0.00011369,2]
[352534741,1739155843784,-500.0,0.00011369,2]
[352534742,1739155843793,-247.77134264,0.00011369,2]
[352534743,1739155843802,-1269.36,0.00011369,2]
[352534744,1739155843817,-500.0,0.00011369,2]
[352534745,1739155843826,-715.0,0.00011369,2]
[352534746,1739155843835,-500.0,0.00011369,2]
[352534747,1739155843844,-500.0,0.00011369,2]
[352534748,1739155843853,-535.04,0.00011369,2]
[352534749,1739155843862,-500.0,0.00011369,2]
[352534750,1739155843872,-500.0,0.00011369,2]
[352534751,1739155843881,-500.0,0.00011369,2]
[352534752,1739155843890,-472.88,0.00011369,2]
[352534753,1739155843899,-500.0,0.00011369,2]
[352534754,1739155843908,-1519.8,0.00011369,2]
[352534755,1739155843917,-546.72,0.00011369,2]
[352534756,1739155843927,-694.31,0.00011369,2]
[352534757,1739155843936,-612.06,0.00011369,2]
[352534758,1739155843945,-500.0,0.00011369,2]
[352534759,1739155843954,-2676.99,0.00011369,2]
[352534760,1739155843964,-500.0,0.00011369,2]
[352534761,1739155843974,-500.0,0.00011369,2]
[352534762,1739155843983,-601.45271623,0.00011369,2]
[352534763,1739155843992,-2116.77,0.00011369,2]
[352534764,1739155844002,-500.0,0.00011369,2]
[352534765,1739155844011,-630.21,0.00011369,2]
[352534766,1739155844020,-500.0,0.00011369,2]
[352534767,1739155844030,-500.0,0.00011369,2]
[352534768,1739155844039,-500.0,0.00011369,2]
[352534769,1739155844048,-500.0,0.00011369,2]
[352534770,1739155844057,-839.52,0.00011369,2]
[352534771,1739155844067,-500.0,0.00011369,2]
[352534772,1739155844076,-2001.69,0.00011369,2]
[352534773,1739155844086,-575.43,0.00011369,2]
[352534774,1739155844095,-500.0,0.00011369,2]
[352534775,1739155844105,-7325.66,0.00011369,2]
[352534776,1739155844114,-500.0,0.00011506,2]
[352534777,1739155844123,-500.0,0.00011506,2]
[352534778,1739155844133,-500.0,0.00011506,2]
[352534779,1739155844142,-500.0,0.00011506,2]
[352534780,1739155844151,-500.0,0.00011506,2]
[352534781,1739155844160,-500.0,0.00011506,2]
[352534782,1739155844170,-500.0,0.00011506,2]
[352534783,1739155844179,-609.62,0.00011506,2]
[352534784,1739155844188,-500.0,0.00011506,2]
[352534785,1739155844198,-500.0,0.00011506,2]
[352534786,1739155844208,-500.0,0.00011506,2]
[352534787,1739155844217,-563.42753114,0.00011506,2]
[352534788,1739155844227,-203.71068915,0.00011506,2]
[352534789,1739155844236,-500.0,0.00011506,2]
[352534790,1739155844246,-500.0,0.00011506,2]
[352534791,1739155844255,-500.0,0.00011506,2]
[352534792,1739155844264,-500.0,0.00011506,2]
[352534793,1739155844273,-500.0,0.00011506,2]
[352534794,1739155844283,-500.0,0.00011506,2]
[352534795,1739155844293,-190.34007891,0.00011506,2]
[352534796,1739155844303,-500.0,0.00011506,2]
[352534797,1739155844312,-500.0,0.00011506,2]
[352534798,1739155844322,-595.63,0.00011506,2]
[352534799,1739155844331,-500.0,0.00011506,2]
[352534800,1739155844347,-500.0,0.00011506,2]
[352534801,1739155844356,-500.0,0.00011506,2]
[352534802,1739155844366,-500.0,0.00011506,2]
[352534803,1739155844375,-500.0,0.00011506,2]
[352534804,1739155844385,-500.0,0.00011506,2]
[352534805,1739155844394,-500.0,0.00011506,2]
[352534806,1739155844404,-500.0,0.00011506,2]
[352534807,1739155844413,-500.0,0.00011506,2]
[352534808,1739155844425,-500.0,0.00011506,2]
[352534809,1739155844435,-500.0,0.00011506,2]
[352534810,1739155844445,-500.0,0.00011506,2]
[352534811,1739155844455,-1054.27,0.00011506,2]
[352534812,1739155844466,-500.0,0.00011506,2]
[352534813,1739155844476,-500.0,0.00011506,2]
[352534814,1739155844485,-500.0,0.00011506,2]
[352534815,1739155844495,-500.0,0.00011506,2]
[352534816,1739155844506,-2186.32,0.00011506,2]
[352534817,1739155844516,-2841.22,0.00011506,2]
[352534818,1739155844525,-500.0,0.00011506,2]
[352534819,1739155844535,-500.8,0.00011506,2]
[352534820,1739155844544,-500.0,0.00011506,2]
[352534821,1739155844554,-2368.46,0.00011506,2]
[352534822,1739155844563,-728.03,0.00011506,2]
[352534823,1739155844572,-344.80364924,0.00011506,2]
[352534824,1739155844581,-7695.47,0.00011506,2]
[352534825,1739155844595,-500.0,0.00011506,2]
[352534826,1739155844603,-500.0,0.00011506,2]
[352534827,1739155844613,-500.0,0.00011506,2]
[352534828,1739155844622,-823.2,0.00011506,2]
[352534829,1739155844631,-870.16,0.00011506,2]
[352534830,1739155844641,-500.0,0.00011506,2]
[352534831,1739155844650,-500.0,0.00011506,2]
[352534832,1739155844659,-996.46,0.00011506,2]
[352534833,1739155844668,-500.0,0.00011506,2]
[352534834,1739155844677,-500.0,0.00011506,2]
[352534835,1739155844688,-864.19,0.00011506,2]
[352534836,1739155844698,-13628.67,0.00011506,2]
[352534837,1739155844708,-500.0,0.00011506,2]
[352534838,1739155844718,-847.08,0.00011506,2]
[352534839,1739155844728,-524.24,0.00011506,2]
[352534840,1739155844739,-500.0,0.00011506,2]
[352534841,1739155844750,-500.0,0.00011506,2]
[352534842,1739155844760,-1269.36,0.00011506,2]
[352534843,1739155844771,-715.0,0.00011506,2]
[352534844,1739155844780,-500.0,0.00011506,2]
[352534845,1739155844790,-500.0,0.00011506,2]
[352534846,1739155844800,-535.04,0.00011506,2]
[352534847,1739155844811,-500.0,0.00011506,2]
[352534848,1739155844820,-500.0,0.00011506,2]
[352534849,1739155844831,-500.0,0.00011506,2]
[352534850,1739155844847,-500.0,0.00011506,2]
[352534851,1739155844858,-1519.8,0.00011506,2]
[352534852,1739155844868,-546.72,0.00011506,2]
[352534853,1739155844878,-694.31,0.00011506,2]
[352534854,1739155844888,-612.06,0.00011506,2]
[352534855,1739155844898,-500.0,0.00011506,2]
[352534856,1739155844909,-2676.99,0.00011506,2]
[352534857,1739155844918,-500.0,0.00011506,2]
[352534858,1739155844928,-500.0,0.00011506,2]
[352534859,1739155844937,-2116.77,0.00011506,2]
[352534860,1739155844947,-500.0,0.00011506,2]
[352534861,1739155844956,-630.21,0.00011506,2]
[352534862,1739155844966,-500.0,0.00011506,2]
[352534863,1739155845066,-500.0,0.00011506,2]
[352534864,1739155845076,-500.0,0.00011506,2]
[352534865,1739155845089,-500.0,0.00011506,2]
[352534866,1739155845098,-839.52,0.00011506,2]
[352534867,1739155845109,-315.35780795,0.00011506,2]
[352534868,1739155845119,-2001.69,0.00011506,2]
[352534869,1739155845128,-575.43,0.00011506,2]
[352534870,1739155845138,-327.31765265,0.00011506,2]
[352534871,1739155845147,-7325.66,0.00011506,2]
[352534872,1739155845157,-154.08897783,0.00011577,2]
[352534873,1739155845167,-500.0,0.00011643,2]
[352534874,1739155845177,-500.0,0.00011643,2]
[352534875,1739155845186,-500.0,0.00011643,2]
[352534876,1739155845196,-500.0,0.00011643,2]
[352534877,1739155845206,-500.0,0.00011643,2]
[352534878,1739155845215,-500.0,0.00011643,2]
[352534879,1739155845225,-609.62,0.00011643,2]
[352534880,1739155845234,-534.61963216,0.00011643,2]
[352534881,1739155845244,-500.0,0.00011643,2]
[352534882,1739155845253,-500.0,0.00011643,2]
[352534883,1739155845262,-500.0,0.00011643,2]
[352534884,1739155845271,-500.0,0.00011643,2]
[352534885,1739155845280,-500.0,0.00011643,2]
[352534886,1739155845290,-500.0,0.00011643,2]
[352534887,1739155845299,-629.99702038,0.00011643,2]
[352534888,1739155845318,-500.0,0.00011643,2]
[352534889,1739155845330,-500.0,0.00011643,2]
[352534890,1739155845343,-500.0,0.00011643,2]
[352534891,1739155845352,-595.63,0.00011643,2]
[352534892,1739155845362,-500.0,0.00011643,2]
[352534893,1739155845372,-500.0,0.00011643,2]
[352534894,1739155845382,-500.0,0.00011643,2]
[352534895,1739155845392,-500.0,0.00011643,2]
[352534896,1739155845402,-500.0,0.00011643,2]
[352534897,1739155845412,-500.0,0.00011643,2]
[352534898,1739155845426,-500.0,0.00011643,2]
[352534899,1739155845436,-500.0,0.00011643,2]
[352534900,1739155845445,-500.0,0.00011643,2]
[352534901,1739155845454,-500.0,0.00011643,2]
[352534902,1739155845465,-500.0,0.00011643,2]
[352534903,1739155845474,-500.0,0.00011643,2]
[352534904,1739155845484,-1054.27,0.00011643,2]
[352534905,1739155845493,-500.0,0.00011643,2]
[352534906,1739155845503,-500.0,0.00011643,2]
[352534907,1739155845513,-500.0,0.00011643,2]
[352534908,1739155845522,-500.0,0.00011643,2]
[352534909,1739155845531,-2186.32,0.00011643,2]
[352534910,1739155845540,-2841.22,0.00011643,2]
[352534911,1739155845549,-500.8,0.00011643,2]
[352534912,1739155845559,-500.0,0.00011643,2]
[352534913,1739155845568,-500.0,0.00011643,2]
[352534914,1739155845577,-2368.46,0.00011643,2]
[352534915,1739155845588,-728.03,0.00011643,2]
[352534916,1739155845597,-7695.47,0.00011643,2]
[352534917,1739155845607,-500.0,0.00011643,2]
[352534918,1739155845618,-500.0,0.00011643,2]
[352534919,1739155845628,-500.0,0.00011643,2]
[352534920,1739155845637,-823.2,0.00011643,2]
[352534921,1739155845647,-870.16,0.00011643,2]
[352534923,1739155845656,-500.0,0.00011643,2]
[352534924,1739155845666,-500.0,0.00011643,2]
[352534926,1739155845675,-996.46,0.00011643,2]
[352534927,1739155845684,-500.0,0.00011643,2]
[352534928,1739155845693,-500.0,0.00011643,2]
[352534929,1739155845702,-864.19,0.00011643,2]
[352534930,1739155845711,-13628.67,0.00011643,2]
[352534931,1739155845721,-500.0,0.00011643,2]
[352534932,1739155845730,-847.08,0.00011643,2]
[352534933,1739155845740,-524.24,0.00011643,2]
[352534934,1739155845749,-500.0,0.00011643,2]
[352534935,1739155845758,-500.0,0.00011643,2]
[352534936,1739155845768,-1269.36,0.00011643,2]
[352534937,1739155845778,-715.0,0.00011643,2]
[352534938,1739155845787,-500.0,0.00011643,2]
[352534939,1739155845797,-500.0,0.00011643,2]
[352534940,1739155845807,-535.04,0.00011643,2]
[352534941,1739155845816,-500.0,0.00011643,2]
[352534942,1739155845826,-500.0,0.00011643,2]
[352534943,1739155845836,-500.0,0.00011643,2]
[352534944,1739155845846,-500.0,0.00011643,2]
[352534945,1739155845855,-1519.8,0.00011643,2]
[352534946,1739155845864,-546.72,0.00011643,2]
[352534948,1739155845873,-694.31,0.00011643,2]
[352534950,1739155845882,-612.06,0.00011643,2]
[352534951,1739155845891,-500.0,0.00011643,2]
[352534952,1739155845901,-2676.99,0.00011643,2]
[352534953,1739155845911,-500.0,0.00011643,2]
[352534954,1739155845920,-500.0,0.00011643,2]
[352534955,1739155845929,-2116.77,0.00011643,2]
[352534956,1739155845938,-500.0,0.00011643,2]
[352534957,1739155845947,-630.21,0.00011643,2]
[352534958,1739155845957,-500.0,0.00011643,2]
[352534959,1739155845966,-500.0,0.00011643,2]
[352534960,1739155845976,-500.0,0.00011643,2]
[352534961,1739155845985,-500.0,0.00011643,2]
[352534962,1739155845994,-839.52,0.00011643,2]
[352534963,1739155846003,-2001.69,0.00011643,2]
[352534964,1739155846013,-575.43,0.00011643,2]
[352534965,1739155846023,-7325.66,0.00011643,2]
[352534967,1739155846032,-500.0,0.0001178,2]
[352534968,1739155846041,-500.0,0.0001178,2]
[352534969,1739155846051,-500.0,0.0001178,2]
[352534970,1739155846060,-500.0,0.0001178,2]
[352534971,1739155846069,-500.0,0.0001178,2]
[352534972,1739155846079,-500.0,0.0001178,2]
[352534973,1739155846090,-609.62,0.0001178,2]
[352534974,1739155846099,-500.0,0.0001178,2]
[352534975,1739155846108,-500.0,0.0001178,2]
[352534976,1739155846118,-500.0,0.0001178,2]
[352534977,1739155846127,-500.0,0.0001178,2]
[352534978,1739155846137,-500.0,0.0001178,2]
[352534979,1739155846146,-500.0,0.0001178,2]
[352534980,1739155846155,-340.17337902,0.0001178,2]
[352534981,1739155846165,-500.0,0.0001178,2]
[352534982,1739155846174,-500.0,0.0001178,2]
[352534983,1739155846184,-595.63,0.0001178,2]
[352534984,1739155846193,-500.0,0.0001178,2]
[352534985,1739155846202,-500.0,0.0001178,2]
[352534986,1739155846212,-500.0,0.0001178,2]
[352534987,1739155846221,-500.0,0.0001178,2]
[352534988,1739155846230,-500.0,0.0001178,2]
[352534990,1739155846239,-500.0,0.0001178,2]
[352534991,1739155846248,-592.08,0.0001178,2]
[352534993,1739155846258,-500.0,0.0001178,2]
[352534994,1739155846266,-500.0,0.0001178,2]
[352534995,1739155846276,-500.0,0.0001178,2]
[352534996,1739155846285,-1054.27,0.0001178,2]
[352534997,1739155846294,-500.0,0.0001178,2]
[352534998,1739155846303,-500.0,0.0001178,2]
[352534999,1739155846312,-500.0,0.0001178,2]
[352535000,1739155846321,-2186.32,0.0001178,2]
[352535001,1739155846331,-2841.22,0.0001178,2]
[352535002,1739155846343,-500.8,0.0001178,2]
[352535003,1739155846352,-500.0,0.0001178,2]
[352535004,1739155846362,-500.0,0.0001178,2]
[352535005,1739155846372,-2368.46,0.0001178,2]
[352535006,1739155846382,-728.03,0.0001178,2]
[352535007,1739155846391,-7695.47,0.0001178,2]
[352535009,1739155846401,-500.0,0.0001178,2]
[352535010,1739155846410,-455.69066298,0.0001178,2]
[352535011,1739155846419,-598.83660907,0.0001178,2]
[352535012,1739155846434,-823.2,0.0001178,2]
[352535013,1739155846445,-870.16,0.0001178,2]
[352535014,1739155846454,-500.0,0.0001178,2]
[352535015,1739155846464,-500.0,0.0001178,2]
[352535016,1739155846474,-996.46,0.0001178,2]
[352535017,1739155846483,-500.0,0.0001178,2]
[352535018,1739155846494,-500.0,0.0001178,2]
[352535019,1739155846503,-864.19,0.0001178,2]
[352535020,1739155846513,-13628.67,0.0001178,2]
[352535021,1739155846523,-500.0,0.0001178,2]
[352535022,1739155846532,-847.08,0.0001178,2]
[352535023,1739155846542,-524.24,0.0001178,2]
[352535024,1739155846551,-500.0,0.0001178,2]
[352535025,1739155846561,-500.0,0.0001178,2]
[352535026,1739155846571,-1269.36,0.0001178,2]
[352535027,1739155846580,-715.0,0.0001178,2]
[352535028,1739155846591,-500.0,0.0001178,2]
[352535029,1739155846601,-500.0,0.0001178,2]
[352535030,1739155846611,-535.04,0.0001178,2]
[352535031,1739155846621,-500.0,0.0001178,2]
[352535032,1739155846631,-500.0,0.0001178,2]
[352535033,1739155846641,-500.0,0.0001178,2]
[352535034,1739155846651,-500.0,0.0001178,2]
[352535035,1739155846661,-1519.8,0.0001178,2]
[352535036,1739155846670,-546.72,0.0001178,2]
[352535037,1739155846680,-694.31,0.0001178,2]
[352535038,1739155846696,-612.06,0.0001178,2]
[352535039,1739155846706,-500.0,0.0001178,2]
[352535040,1739155846716,-2676.99,0.0001178,2]
[352535041,1739155846726,-500.0,0.0001178,2]
[352535042,1739155846736,-500.0,0.0001178,2]
[352535043,1739155846745,-2116.77,0.0001178,2]
[352535044,1739155846755,-500.0,0.0001178,2]
[352535045,1739155846764,-630.21,0.0001178,2]
[352535046,1739155846774,-500.0,0.0001178,2]
[352535047,1739155846783,-500.0,0.0001178,2]
[352535048,1739155846792,-500.0,0.0001178,2]
[352535049,1739155846801,-500.0,0.0001178,2]
[352535050,1739155846811,-839.52,0.0001178,2]
[352535051,1739155846819,-2001.69,0.0001178,2]
[352535052,1739155846830,-575.43,0.0001178,2]
[352535053,1739155846839,-7325.66,0.0001178,2]
[352535054,1739155846848,-154.08897783,0.00011817,2]
[352535055,1739155846858,-507.8961305,0.00011917,2]
[352535056,1739155846867,-503.89,0.00011917,2]
[352535057,1739155846876,-527.72506431,0.00011917,2]
[352535058,1739155846886,-500.0,0.00011917,2]
[352535059,1739155846895,-294.41690664,0.00011917,2]
[352535060,1739155846904,-439.06556329,0.00011917,2]
[352535061,1739155846913,-609.62,0.00011917,2]
[352535062,1739155846923,-500.0,0.00011917,2]
[352535063,1739155846932,-343.07281591,0.00011917,2]
[352535064,1739155846942,-500.0,0.00011917,2]
[352535065,1739155846951,-500.0,0.00011917,2]
[352535066,1739155846960,-500.0,0.00011917,2]
[352535067,1739155846969,-332.0508245,0.00011917,2]
[352535068,1739155846978,-500.0,0.00011917,2]
[352535069,1739155846988,-595.63,0.00011917,2]
[352535070,1739155846997,-500.0,0.00011917,2]
[352535071,1739155847007,-500.0,0.00011917,2]
[352535072,1739155847016,-500.0,0.00011917,2]
[352535073,1739155847025,-500.0,0.00011917,2]
[352535074,1739155847035,-500.0,0.00011917,2]
[352535075,1739155847044,-291.73943482,0.00011917,2]
[352535076,1739155847054,-500.0,0.00011917,2]
[352535077,1739155847063,-500.0,0.00011917,2]
[352535078,1739155847072,-500.0,0.00011917,2]
[352535079,1739155847081,-1054.27,0.00011917,2]
[352535080,1739155847091,-500.0,0.00011917,2]
[352535081,1739155847101,-500.0,0.00011917,2]
[352535082,1739155847112,-500.0,0.00011917,2]
[352535083,1739155847122,-2186.32,0.00011917,2]
[352535084,1739155847133,-2841.22,0.00011917,2]
[352535085,1739155847142,-500.8,0.00011917,2]
[352535086,1739155847152,-500.0,0.00011917,2]
[352535087,1739155847163,-500.0,0.00011917,2]
[352535088,1739155847173,-2368.46,0.00011917,2]
[352535089,1739155847182,-728.03,0.00011917,2]
[352535090,1739155847192,-7695.47,0.00011917,2]
[352535091,1739155847202,-500.0,0.00011917,2]
[352535092,1739155847211,-823.2,0.00011917,2]
[352535093,1739155847222,-870.16,0.00011917,2]
[352535094,1739155847239,-500.0,0.00011917,2]
[352535095,1739155847248,-500.0,0.00011917,2]
[352535096,1739155847258,-996.46,0.00011917,2]
[352535097,1739155847268,-500.0,0.00011917,2]
[352535098,1739155847278,-500.0,0.00011917,2]
[352535099,1739155847288,-864.19,0.00011917,2]
[352535100,1739155847297,-13628.67,0.00011917,2]
[352535101,1739155847307,-500.0,0.00011917,2]
[352535102,1739155847317,-847.08,0.00011917,2]
[352535103,1739155847435,-524.24,0.00011917,2]
[352535104,1739155847446,-641.17702275,0.00011917,2]
[352535105,1739155847456,-500.0,0.00011917,2]
[352535106,1739155847467,-1269.36,0.00011917,2]